[Event "Early-Titled-Tuesday-Blitz-April-23-2024"]
[Site "Chess.com"]
[Date "2024.04.23"]
[Round "2"]
[White "KVAIDAN"]
[Black "Timerkhanov"]
[Result "1/2-1/2"]
[WhiteElo "2380"]
[BlackElo "2634"]
[TimeControl "180+1"]
[EndTime "8:18:11 PDT"]
[Termination "Game drawn - insufficient material"]

1. f4 {[%clk 0:03:00]} 1... d5 {[%clk 0:02:58.2]} 2. Nf3 {[%clk 0:02:59.1]} 2...
Bg4 {[%clk 0:02:56]} 3. Ne5 {[%clk 0:02:54.6]} 3... Bf5 {[%clk 0:02:55.5]} 4. e3
{[%clk 0:02:49.1]} 4... Nd7 {[%clk 0:02:54]} 5. c4 {[%clk 0:02:48.1]} 5... Nxe5
{[%clk 0:02:47]} 6. fxe5 {[%clk 0:02:45.6]} 6... e6 {[%clk 0:02:39.3]} 7. Qb3
{[%clk 0:02:42.9]} 7... Rb8 {[%clk 0:02:25.7]} 8. Nc3 {[%clk 0:02:40.8]} 8... c6
{[%clk 0:02:25]} 9. d4 {[%clk 0:02:37.7]} 9... f6 {[%clk 0:02:20.1]} 10. Be2
{[%clk 0:02:33.3]} 10... fxe5 {[%clk 0:02:19.1]} 11. dxe5 {[%clk 0:02:31.6]}
11... Bc5 {[%clk 0:02:19.1]} 12. Na4 {[%clk 0:02:27.7]} 12... Be7 {[%clk
0:02:04.6]} 13. cxd5 {[%clk 0:02:24.8]} 13... exd5 {[%clk 0:02:01]} 14. O-O
{[%clk 0:02:25.2]} 14... Nh6 {[%clk 0:01:47.8]} 15. Nc3 {[%clk 0:02:17.6]} 15...
O-O {[%clk 0:01:33]} 16. e4 {[%clk 0:02:13.3]} 16... Bc5+ {[%clk 0:01:30.7]} 17.
Kh1 {[%clk 0:02:12.2]} 17... Be6 {[%clk 0:01:24.9]} 18. Bxh6 {[%clk 0:02:11.2]}
18... gxh6 {[%clk 0:01:22.6]} 19. exd5 {[%clk 0:02:11.4]} 19... cxd5 {[%clk
0:01:22.4]} 20. Rxf8+ {[%clk 0:02:04.5]} 20... Bxf8 {[%clk 0:01:20.7]} 21. Rd1
{[%clk 0:02:03.9]} 21... Qg5 {[%clk 0:01:10.8]} 22. Nxd5 {[%clk 0:01:47.1]}
22... Qxe5 {[%clk 0:01:10.4]} 23. Qf3 {[%clk 0:01:20.8]} 23... Bd6 {[%clk
0:01:02.8]} 24. Qh5 {[%clk 0:01:20.6]} 24... Qxh5 {[%clk 0:00:38.8]} 25. Bxh5
{[%clk 0:01:20.3]} 25... Kg7 {[%clk 0:00:39.4]} 26. b3 {[%clk 0:01:18]} 26...
Bc5 {[%clk 0:00:35.6]} 27. Bf3 {[%clk 0:01:15.7]} 27... Rd8 {[%clk 0:00:31.2]}
28. h3 {[%clk 0:01:13.9]} 28... b6 {[%clk 0:00:31.3]} 29. g4 {[%clk 0:01:05.1]}
29... Rf8 {[%clk 0:00:30.4]} 30. Kg2 {[%clk 0:01:05.3]} 30... Bc8 {[%clk
0:00:29.1]} 31. b4 {[%clk 0:01:02.4]} 31... Bd6 {[%clk 0:00:21.6]} 32. a4 {[%clk
0:00:59.2]} 32... Bb7 {[%clk 0:00:20.6]} 33. Rd3 {[%clk 0:00:58]} 33... Rc8
{[%clk 0:00:18.6]} 34. Ne3 {[%clk 0:00:54.8]} 34... Bxf3+ {[%clk 0:00:12.2]} 35.
Kxf3 {[%clk 0:00:54.8]} 35... Bxb4 {[%clk 0:00:12.9]} 36. Rd7+ {[%clk
0:00:53.6]} 36... Kg6 {[%clk 0:00:12.4]} 37. Rxa7 {[%clk 0:00:50.9]} 37... Rc3
{[%clk 0:00:12.9]} 38. Ke4 {[%clk 0:00:50.6]} 38... Bc5 {[%clk 0:00:13.4]} 39.
Nf5 {[%clk 0:00:49.8]} 39... Rxh3 {[%clk 0:00:13.8]} 40. Rg7+ {[%clk 0:00:48.8]}
40... Kf6 {[%clk 0:00:14.1]} 41. Rxh7 {[%clk 0:00:47.9]} 41... Ra3 {[%clk
0:00:14.6]} 42. Rxh6+ {[%clk 0:00:45.3]} 42... Kg5 {[%clk 0:00:15.2]} 43. Rc6
{[%clk 0:00:43.3]} 43... Rxa4+ {[%clk 0:00:15.7]} 44. Kd5 {[%clk 0:00:43.1]}
44... Rxg4 {[%clk 0:00:14.8]} 45. Nd6 {[%clk 0:00:41.7]} 45... Rd4+ {[%clk
0:00:15.1]} 46. Ke6 {[%clk 0:00:41.7]} 46... Rd1 {[%clk 0:00:04.9]} 47. Ne4+
{[%clk 0:00:39.8]} 47... Kf4 {[%clk 0:00:04.6]} 48. Nxc5 {[%clk 0:00:40.3]}
48... bxc5 {[%clk 0:00:02.1]} 49. Rxc5 {[%clk 0:00:40.1]} 49... Re1+ {[%clk
0:00:03]} 50. Kd6 {[%clk 0:00:39.9]} 50... Rd1+ {[%clk 0:00:03.2]} 51. Rd5
{[%clk 0:00:39.9]} 51... Re1 {[%clk 0:00:03.8]} 52. Kd7 {[%clk 0:00:37.9]} 52...
Re4 {[%clk 0:00:04.2]} 53. Kd6 {[%clk 0:00:37.7]} 53... Re3 {[%clk 0:00:04.6]}
54. Kc5 {[%clk 0:00:37.8]} 54... Re4 {[%clk 0:00:04.9]} 55. Rd4 {[%clk
0:00:37.8]} 55... Rxd4 {[%clk 0:00:05.1]} 56. Kxd4 {[%clk 0:00:38]} 1/2-1/2

[Event "Early-Titled-Tuesday-Blitz-April-23-2024"]
[Site "Chess.com"]
[Date "2024.04.23"]
[Round "2"]
[White "FairChess_on_YouTube"]
[Black "Meri-Arabidze"]
[Result "1-0"]
[WhiteElo "3102"]
[BlackElo "2659"]
[TimeControl "180+1"]
[EndTime "8:18:13 PDT"]
[Termination "FairChess_on_YouTube won on time"]

1. Nf3 {[%clk 0:03:00.9]} 1... Nf6 {[%clk 0:02:59.6]} 2. c4 {[%clk 0:03:01.1]}
2... e6 {[%clk 0:02:58.9]} 3. g3 {[%clk 0:03:00.2]} 3... d5 {[%clk 0:02:58.8]}
4. d4 {[%clk 0:03:00.4]} 4... Bb4+ {[%clk 0:02:57.3]} 5. Nbd2 {[%clk 0:02:59.6]}
5... O-O {[%clk 0:02:56.2]} 6. Bg2 {[%clk 0:02:59.3]} 6... b6 {[%clk 0:02:56.7]}
7. O-O {[%clk 0:02:58.8]} 7... Bb7 {[%clk 0:02:57]} 8. Ne5 {[%clk 0:02:57.5]}
8... Nbd7 {[%clk 0:02:56.3]} 9. Ndf3 {[%clk 0:02:54.3]} 9... dxc4 {[%clk
0:02:51.7]} 10. Bg5 {[%clk 0:02:54.3]} 10... Be7 {[%clk 0:02:49.8]} 11. Rc1
{[%clk 0:02:51.7]} 11... Nxe5 {[%clk 0:02:45.4]} 12. dxe5 {[%clk 0:02:51.1]}
12... Nd5 {[%clk 0:02:34.6]} 13. Bxe7 {[%clk 0:02:50.8]} 13... Nxe7 {[%clk
0:02:34.3]} 14. Rxc4 {[%clk 0:02:50.2]} 14... c5 {[%clk 0:02:32.2]} 15. Qb1
{[%clk 0:02:45.8]} 15... Qc7 {[%clk 0:02:25.5]} 16. Ng5 {[%clk 0:02:36]} 16...
Nf5 {[%clk 0:02:07.7]} 17. Bxb7 {[%clk 0:02:26.1]} 17... Qxb7 {[%clk 0:02:08.6]}
18. g4 {[%clk 0:02:24.8]} 18... h6 {[%clk 0:02:08.4]} 19. gxf5 {[%clk
0:02:19.8]} 19... hxg5 {[%clk 0:02:08.3]} 20. Rg4 {[%clk 0:02:07.2]} 20... Qd5
{[%clk 0:01:57.2]} 21. f4 {[%clk 0:02:06.9]} 21... exf5 {[%clk 0:01:45.2]} 22.
Qxf5 {[%clk 0:02:05.1]} 22... f6 {[%clk 0:01:43.2]} 23. e4 {[%clk 0:01:37.1]}
23... Qd4+ {[%clk 0:01:39.4]} 24. Kg2 {[%clk 0:01:37.4]} 24... Rae8 {[%clk
0:01:28.7]} 25. e6 {[%clk 0:01:21.5]} 25... Qd6 {[%clk 0:01:11.3]} 26. fxg5
{[%clk 0:01:17]} 26... Qxe6 {[%clk 0:01:11.3]} 27. g6 {[%clk 0:00:51.7]} 27...
Qxf5 {[%clk 0:01:01.8]} 28. Rxf5 {[%clk 0:00:51.5]} 28... Re5 {[%clk 0:00:56.8]}
29. Rxe5 {[%clk 0:00:50.1]} 29... fxe5 {[%clk 0:00:57.7]} 30. Rg5 {[%clk
0:00:50.3]} 30... Rf4 {[%clk 0:00:53.9]} 31. Kg3 {[%clk 0:00:36.2]} 31... Rxe4
{[%clk 0:00:52]} 32. h4 {[%clk 0:00:35]} 32... Re2 {[%clk 0:00:49.5]} 33. Rf5
{[%clk 0:00:33.6]} 33... Re3+ {[%clk 0:00:33]} 34. Kg4 {[%clk 0:00:33.3]} 34...
Re2 {[%clk 0:00:25.5]} 35. h5 {[%clk 0:00:32.1]} 35... Rxb2 {[%clk 0:00:24.1]}
36. Rxe5 {[%clk 0:00:32.1]} 36... Kf8 {[%clk 0:00:24.4]} 37. Rf5+ {[%clk
0:00:32.2]} 37... Kg8 {[%clk 0:00:23.7]} 38. Rd5 {[%clk 0:00:31.5]} 38... Kf8
{[%clk 0:00:23.3]} 39. Rd8+ {[%clk 0:00:16.9]} 39... Ke7 {[%clk 0:00:23.3]} 40.
Rg8 {[%clk 0:00:17.8]} 40... Rg2+ {[%clk 0:00:15.7]} 41. Kf3 {[%clk 0:00:17.9]}
41... Rh2 {[%clk 0:00:12.8]} 42. Rxg7+ {[%clk 0:00:17.9]} 42... Ke6 {[%clk
0:00:10.5]} 43. Rh7 {[%clk 0:00:17.5]} 43... c4 {[%clk 0:00:10.6]} 44. g7 {[%clk
0:00:17.5]} 44... Kf7 {[%clk 0:00:10.7]} 45. h6 {[%clk 0:00:17.1]} 45... Rh1
{[%clk 0:00:02.9]} 46. Rh8 {[%clk 0:00:17.2]} 46... Rg1 {[%clk 0:00:02.8]} 47.
Rf8+ {[%clk 0:00:17.2]} 47... Ke7 {[%clk 0:00:03.2]} 48. g8=Q {[%clk 0:00:17.8]}
1-0

[Event "Early-Titled-Tuesday-Blitz-April-23-2024"]
[Site "Chess.com"]
[Date "2024.04.23"]
[Round "2"]
[White "DamianoLew95"]
[Black "manmanlai1"]
[Result "1-0"]
[WhiteElo "2804"]
[BlackElo "2526"]
[TimeControl "180+1"]
[EndTime "8:18:13 PDT"]
[Termination "DamianoLew95 won by resignation"]

1. e4 {[%clk 0:03:00.9]} 1... c5 {[%clk 0:02:59.1]} 2. Nf3 {[%clk 0:03:00.8]}
2... e6 {[%clk 0:02:59.6]} 3. d3 {[%clk 0:02:58.8]} 3... d5 {[%clk 0:02:58]} 4.
Nbd2 {[%clk 0:02:58.9]} 4... Nc6 {[%clk 0:02:56.9]} 5. g3 {[%clk 0:02:58.5]}
5... Bd6 {[%clk 0:02:57.2]} 6. Bg2 {[%clk 0:02:58.7]} 6... Nge7 {[%clk
0:02:57.7]} 7. O-O {[%clk 0:02:59.3]} 7... O-O {[%clk 0:02:57.7]} 8. Re1 {[%clk
0:03:00]} 8... Qc7 {[%clk 0:02:58]} 9. a4 {[%clk 0:02:57.4]} 9... b6 {[%clk
0:02:53.3]} 10. Qe2 {[%clk 0:02:57.1]} 10... f6 {[%clk 0:02:52]} 11. c4 {[%clk
0:02:49.7]} 11... d4 {[%clk 0:02:38.9]} 12. Nf1 {[%clk 0:02:44.6]} 12... e5
{[%clk 0:02:37.3]} 13. Bd2 {[%clk 0:02:43.4]} 13... a6 {[%clk 0:02:35.7]} 14. h3
{[%clk 0:02:35.9]} 14... Rb8 {[%clk 0:02:35.8]} 15. b3 {[%clk 0:02:31.3]} 15...
Be6 {[%clk 0:02:34.8]} 16. N1h2 {[%clk 0:02:29.9]} 16... b5 {[%clk 0:02:34.7]}
17. axb5 {[%clk 0:02:29.9]} 17... axb5 {[%clk 0:02:35.6]} 18. Nh4 {[%clk
0:02:22.8]} 18... bxc4 {[%clk 0:02:31.7]} 19. bxc4 {[%clk 0:02:23.7]} 19... Rb3
{[%clk 0:02:29.9]} 20. Reb1 {[%clk 0:02:19.6]} 20... Rfb8 {[%clk 0:02:30.1]} 21.
Rxb3 {[%clk 0:02:15.6]} 21... Rxb3 {[%clk 0:02:31]} 22. Bf1 {[%clk 0:02:11.6]}
22... Qb8 {[%clk 0:02:13.3]} 23. Qh5 {[%clk 0:01:50.8]} 23... Rb2 {[%clk
0:01:49.5]} 24. Bc1 {[%clk 0:01:47.6]} 24... Bf7 {[%clk 0:01:49]} 25. Qg4 {[%clk
0:01:43.2]} 25... Rb1 {[%clk 0:01:41.1]} 26. Rxb1 {[%clk 0:01:40.5]} 26... Qxb1
{[%clk 0:01:42]} 27. Bd2 {[%clk 0:01:37.7]} 27... Qb8 {[%clk 0:01:38]} 28. Nf5
{[%clk 0:01:26.5]} 28... Nxf5 {[%clk 0:01:37.1]} 29. exf5 {[%clk 0:01:26.3]}
29... Ne7 {[%clk 0:01:28.3]} 30. Qf3 {[%clk 0:01:19.3]} 30... Be8 {[%clk
0:01:26.1]} 31. Bg2 {[%clk 0:01:14.7]} 31... Qb1+ {[%clk 0:01:16.7]} 32. Nf1
{[%clk 0:01:10.6]} 32... Bc6 {[%clk 0:01:16.8]} 33. Qh5 {[%clk 0:01:08.7]} 33...
Bd7 {[%clk 0:01:09.3]} 34. Be4 {[%clk 0:00:52.2]} 34... Qb8 {[%clk 0:01:04.1]}
35. Qf3 {[%clk 0:00:41.4]} 35... Qc8 {[%clk 0:01:00.1]} 36. g4 {[%clk
0:00:41.4]} 36... Bc6 {[%clk 0:00:42.3]} 37. Ng3 {[%clk 0:00:41.3]} 37... Bxe4
{[%clk 0:00:40.2]} 38. Nxe4 {[%clk 0:00:42.2]} 38... Qc6 {[%clk 0:00:34.5]} 39.
h4 {[%clk 0:00:35.3]} 39... Bc7 {[%clk 0:00:30.6]} 40. g5 {[%clk 0:00:31.7]}
40... Qd7 {[%clk 0:00:05.7]} 41. gxf6 {[%clk 0:00:25.9]} 41... Nxf5 {[%clk
0:00:05.2]} 42. Qg4 {[%clk 0:00:20.3]} 42... g6 {[%clk 0:00:04.5]} 43. h5 {[%clk
0:00:17.4]} 43... Qe8 {[%clk 0:00:04.3]} 44. Ng5 {[%clk 0:00:10.9]} 44... Bd8
{[%clk 0:00:03.3]} 45. f7+ {[%clk 0:00:10.7]} 1-0

[Event "Early-Titled-Tuesday-Blitz-April-23-2024"]
[Site "Chess.com"]
[Date "2024.04.23"]
[Round "2"]
[White "Sadykov_Ramil"]
[Black "WCM-Mexicana"]
[Result "1-0"]
[WhiteElo "2637"]
[BlackElo "2339"]
[TimeControl "180+1"]
[EndTime "8:18:16 PDT"]
[Termination "Sadykov_Ramil won by resignation"]

1. a3 {[%clk 0:03:00.9]} 1... d5 {[%clk 0:02:57.1]} 2. Nf3 {[%clk 0:02:59.7]}
2... c5 {[%clk 0:02:57]} 3. e3 {[%clk 0:02:59.2]} 3... Nc6 {[%clk 0:02:52.5]} 4.
c4 {[%clk 0:02:55.6]} 4... dxc4 {[%clk 0:02:50.6]} 5. Bxc4 {[%clk 0:02:53.8]}
5... e5 {[%clk 0:02:51]} 6. Qa4 {[%clk 0:02:34.8]} 6... Bd6 {[%clk 0:02:31]} 7.
d4 {[%clk 0:02:25.8]} 7... exd4 {[%clk 0:02:26.6]} 8. exd4 {[%clk 0:02:26.7]}
8... cxd4 {[%clk 0:02:22.8]} 9. Nxd4 {[%clk 0:02:27.6]} 9... Bd7 {[%clk
0:02:23.3]} 10. Nb5 {[%clk 0:02:11.5]} 10... Bb8 {[%clk 0:02:08.6]} 11. O-O
{[%clk 0:01:58.1]} 11... Nge7 {[%clk 0:02:03.3]} 12. Qd1 {[%clk 0:01:39.1]}
12... O-O {[%clk 0:02:00.9]} 13. Nd6 {[%clk 0:01:30]} 13... Ng6 {[%clk
0:01:55.1]} 14. Nc3 {[%clk 0:01:17.5]} 14... a6 {[%clk 0:01:52.8]} 15. Nce4
{[%clk 0:01:10.3]} 15... b5 {[%clk 0:01:45.6]} 16. Bg5 {[%clk 0:01:08.3]} 16...
Qc7 {[%clk 0:01:42.2]} 17. Bd5 {[%clk 0:00:59]} 17... h6 {[%clk 0:01:10.7]} 18.
Qh5 {[%clk 0:00:46.3]} 18... Bf5 {[%clk 0:00:19.7]} 19. Bxh6 {[%clk 0:00:28]}
19... Bxe4 {[%clk 0:00:19.5]} 20. Nxe4 {[%clk 0:00:21.9]} 20... Qe5 {[%clk
0:00:13.1]} 21. Qxe5 {[%clk 0:00:12.5]} 21... Ngxe5 {[%clk 0:00:14]} 22. Bf4
{[%clk 0:00:09.8]} 22... Ra7 {[%clk 0:00:14.1]} 23. Rac1 {[%clk 0:00:06.7]}
23... Nd4 {[%clk 0:00:13.8]} 24. Rfe1 {[%clk 0:00:04.2]} 24... Nd3 {[%clk
0:00:13.7]} 25. Bxb8 {[%clk 0:00:03.7]} 25... Rxb8 {[%clk 0:00:14.6]} 26. Rcd1
{[%clk 0:00:03.9]} 26... Nxe1 {[%clk 0:00:14.8]} 27. Rxd4 {[%clk 0:00:04.3]}
27... Nc2 {[%clk 0:00:15.3]} 28. Rd2 {[%clk 0:00:03.8]} 28... Rc7 {[%clk
0:00:14.5]} 29. g4 {[%clk 0:00:03.7]} 29... b4 {[%clk 0:00:11.7]} 30. a4 {[%clk
0:00:03.6]} 30... b3 {[%clk 0:00:11.7]} 31. Ng5 {[%clk 0:00:03.7]} 31... Rf8
{[%clk 0:00:10.8]} 32. Kg2 {[%clk 0:00:03]} 32... Nb4 {[%clk 0:00:08.3]} 33. Rd4
{[%clk 0:00:03]} 33... Nxd5 {[%clk 0:00:08.2]} 34. Rxd5 {[%clk 0:00:03.9]} 34...
Rc5 {[%clk 0:00:08.9]} 35. Rxc5 {[%clk 0:00:04]} 35... f6 {[%clk 0:00:09.3]} 36.
Ne6 {[%clk 0:00:03.9]} 36... Re8 {[%clk 0:00:09.4]} 37. Nd4 {[%clk 0:00:04.4]}
37... Rd8 {[%clk 0:00:08.9]} 38. Nxb3 {[%clk 0:00:04.6]} 38... Rb8 {[%clk
0:00:09.1]} 39. Rc3 {[%clk 0:00:04]} 39... a5 {[%clk 0:00:08.1]} 40. Nxa5 {[%clk
0:00:03.8]} 40... Rxb2 {[%clk 0:00:05.9]} 41. Ra3 {[%clk 0:00:03.2]} 41... Rb4
{[%clk 0:00:05.4]} 42. h3 {[%clk 0:00:03.2]} 42... Rb8 {[%clk 0:00:04.5]} 43.
Nc6 {[%clk 0:00:03.4]} 43... Ra8 {[%clk 0:00:02.9]} 44. a5 {[%clk 0:00:03.4]}
1-0

[Event "Early-Titled-Tuesday-Blitz-April-23-2024"]
[Site "Chess.com"]
[Date "2024.04.23"]
[Round "2"]
[White "gshwbedhkhd"]
[Black "kuli4ik"]
[Result "0-1"]
[WhiteElo "2606"]
[BlackElo "2885"]
[TimeControl "180+1"]
[EndTime "8:18:17 PDT"]
[Termination "kuli4ik won by checkmate"]

1. e4 {[%clk 0:03:00.9]} 1... e6 {[%clk 0:02:58.7]} 2. d4 {[%clk 0:03:00.2]}
2... d5 {[%clk 0:02:56]} 3. Nc3 {[%clk 0:02:58.7]} 3... Bb4 {[%clk 0:02:55.2]}
4. Ne2 {[%clk 0:02:55.5]} 4... Nc6 {[%clk 0:02:51]} 5. e5 {[%clk 0:02:51]} 5...
f6 {[%clk 0:02:48]} 6. f4 {[%clk 0:02:48.3]} 6... Nh6 {[%clk 0:02:43.8]} 7. a3
{[%clk 0:02:47.2]} 7... Ba5 {[%clk 0:02:43.2]} 8. Be3 {[%clk 0:02:41.6]} 8...
O-O {[%clk 0:02:39.9]} 9. g3 {[%clk 0:02:32.8]} 9... Bd7 {[%clk 0:02:35.3]} 10.
b4 {[%clk 0:02:29.6]} 10... Bb6 {[%clk 0:02:34.5]} 11. Qd2 {[%clk 0:02:25.9]}
11... Ng4 {[%clk 0:02:12.3]} 12. Bg1 {[%clk 0:02:25.3]} 12... fxe5 {[%clk
0:02:11.5]} 13. dxe5 {[%clk 0:02:21.3]} 13... Bxg1 {[%clk 0:02:09.1]} 14. Nxg1
{[%clk 0:02:20.8]} 14... Be8 {[%clk 0:01:15.7]} 15. Nf3 {[%clk 0:02:04.7]} 15...
Bg6 {[%clk 0:00:58.6]} 16. h3 {[%clk 0:01:57]} 16... Nh6 {[%clk 0:00:55.5]} 17.
Ng5 {[%clk 0:01:55.5]} 17... Qe7 {[%clk 0:00:52]} 18. Bg2 {[%clk 0:01:53.6]}
18... Rad8 {[%clk 0:00:43.9]} 19. O-O {[%clk 0:01:44.5]} 19... Nf5 {[%clk
0:00:41.6]} 20. Kh2 {[%clk 0:01:43.1]} 20... a6 {[%clk 0:00:39.9]} 21. g4 {[%clk
0:01:33.7]} 21... Nfd4 {[%clk 0:00:37.7]} 22. Rac1 {[%clk 0:01:16.3]} 22... h6
{[%clk 0:00:37]} 23. Nf3 {[%clk 0:01:14.4]} 23... Nxc2 {[%clk 0:00:23.1]} 24.
Rxc2 {[%clk 0:01:08.5]} 24... Bxc2 {[%clk 0:00:24]} 25. Qxc2 {[%clk 0:01:09.1]}
25... Rxf4 {[%clk 0:00:23]} 26. Ne2 {[%clk 0:00:55.8]} 26... Rf7 {[%clk
0:00:20]} 27. Ned4 {[%clk 0:00:52]} 27... Nxd4 {[%clk 0:00:19.6]} 28. Nxd4
{[%clk 0:00:52.3]} 28... Rxf1 {[%clk 0:00:20.1]} 29. Bxf1 {[%clk 0:00:53.2]}
29... Rf8 {[%clk 0:00:20]} 30. Bg2 {[%clk 0:00:50.3]} 30... Qg5 {[%clk
0:00:17.4]} 31. Nf3 {[%clk 0:00:43.1]} 31... Qe3 {[%clk 0:00:16.7]} 32. Kg3
{[%clk 0:00:34.3]} 32... c6 {[%clk 0:00:16.2]} 33. a4 {[%clk 0:00:33.3]} 33...
Qf4+ {[%clk 0:00:15.6]} 34. Kf2 {[%clk 0:00:33]} 34... Qxe5 {[%clk 0:00:14.9]}
35. Qc5 {[%clk 0:00:27.4]} 35... Qb2+ {[%clk 0:00:12.4]} 36. Kg3 {[%clk
0:00:26.1]} 36... Qb3 {[%clk 0:00:12.7]} 37. a5 {[%clk 0:00:23.7]} 37... e5
{[%clk 0:00:12.6]} 38. Kh4 {[%clk 0:00:04.5]} 38... Rxf3 {[%clk 0:00:11.6]} 39.
Bxf3 {[%clk 0:00:05.4]} 39... Qxf3 {[%clk 0:00:11.8]} 40. Qb6 {[%clk 0:00:04.5]}
40... Qf7 {[%clk 0:00:11.5]} 41. Qd8+ {[%clk 0:00:02.8]} 41... Kh7 {[%clk
0:00:11.1]} 42. g5 {[%clk 0:00:02.3]} 42... hxg5+ {[%clk 0:00:10.7]} 43. Kg4
{[%clk 0:00:02.4]} 43... Qf4+ {[%clk 0:00:10]} 44. Kh5 {[%clk 0:00:02.9]} 44...
g6# {[%clk 0:00:10.9]} 0-1

[Event "Early-Titled-Tuesday-Blitz-April-23-2024"]
[Site "Chess.com"]
[Date "2024.04.23"]
[Round "2"]
[White "Vaathi_Coming"]
[Black "Silent-Killer100"]
[Result "0-1"]
[WhiteElo "2844"]
[BlackElo "2613"]
[TimeControl "180+1"]
[EndTime "8:18:18 PDT"]
[Termination "Silent-Killer100 won on time"]

1. c4 {[%clk 0:02:54.1]} 1... e5 {[%clk 0:02:59.9]} 2. Nf3 {[%clk 0:02:51.2]}
2... Nc6 {[%clk 0:02:58.2]} 3. d4 {[%clk 0:02:49.1]} 3... exd4 {[%clk
0:02:56.1]} 4. Nxd4 {[%clk 0:02:50]} 4... Nf6 {[%clk 0:02:55.2]} 5. g3 {[%clk
0:02:44.7]} 5... Bb4+ {[%clk 0:02:53.7]} 6. Bd2 {[%clk 0:02:44.2]} 6... Bxd2+
{[%clk 0:02:41.9]} 7. Qxd2 {[%clk 0:02:45.1]} 7... O-O {[%clk 0:02:37.9]} 8. Bg2
{[%clk 0:02:44.4]} 8... Re8 {[%clk 0:02:38]} 9. Nc3 {[%clk 0:02:42.5]} 9... Ne5
{[%clk 0:02:35.5]} 10. b3 {[%clk 0:02:38.7]} 10... d6 {[%clk 0:02:32.1]} 11. O-O
{[%clk 0:02:38]} 11... a6 {[%clk 0:02:31.6]} 12. Rad1 {[%clk 0:02:30.6]} 12...
Qe7 {[%clk 0:02:28.5]} 13. h3 {[%clk 0:02:29.6]} 13... h6 {[%clk 0:02:26.8]} 14.
f4 {[%clk 0:02:27.3]} 14... Ned7 {[%clk 0:02:22.5]} 15. e4 {[%clk 0:02:26.4]}
15... Nc5 {[%clk 0:02:21.2]} 16. Rfe1 {[%clk 0:02:25.1]} 16... Qf8 {[%clk
0:02:19.8]} 17. Re3 {[%clk 0:01:56.2]} 17... Rb8 {[%clk 0:02:18.5]} 18. Rde1
{[%clk 0:01:47.5]} 18... Bd7 {[%clk 0:02:12.3]} 19. e5 {[%clk 0:01:45.8]} 19...
dxe5 {[%clk 0:02:13.2]} 20. fxe5 {[%clk 0:01:46]} 20... Nh7 {[%clk 0:02:12.8]}
21. Rf1 {[%clk 0:01:38.8]} 21... Ng5 {[%clk 0:01:50.6]} 22. h4 {[%clk
0:01:38.4]} 22... Nge6 {[%clk 0:01:46.9]} 23. Nf5 {[%clk 0:01:31.4]} 23... g6
{[%clk 0:01:44]} 24. Nd5 {[%clk 0:01:27]} 24... gxf5 {[%clk 0:01:38.1]} 25. Rxf5
{[%clk 0:01:22.7]} 25... Bc6 {[%clk 0:01:06.6]} 26. Nf6+ {[%clk 0:01:21.2]}
26... Kh8 {[%clk 0:01:06.4]} 27. Bxc6 {[%clk 0:01:20.3]} 27... bxc6 {[%clk
0:01:00.9]} 28. Rh5 {[%clk 0:01:20]} 28... Red8 {[%clk 0:00:56.4]} 29. Qc1
{[%clk 0:00:59.3]} 29... Nd7 {[%clk 0:00:23.7]} 30. Rf3 {[%clk 0:00:51.5]} 30...
Nxf6 {[%clk 0:00:17.2]} 31. Rxf6 {[%clk 0:00:18.8]} 31... Qg7 {[%clk 0:00:17.1]}
32. Kh2 {[%clk 0:00:16.2]} 32... Kg8 {[%clk 0:00:16.7]} 33. Rfxh6 {[%clk
0:00:13.8]} 33... Rd3 {[%clk 0:00:16.9]} 34. Qe1 {[%clk 0:00:05.4]} 34... Rbd8
{[%clk 0:00:16.3]} 35. Rxe6 {[%clk 0:00:05.2]} 35... Rd2+ {[%clk 0:00:16.6]} 36.
Kh3 {[%clk 0:00:04.8]} 36... fxe6 {[%clk 0:00:15.1]} 37. Rg5 {[%clk 0:00:04.9]}
37... Kh7 {[%clk 0:00:15.4]} 38. Rxg7+ {[%clk 0:00:04.7]} 38... Kxg7 {[%clk
0:00:16.3]} 39. Qe4 {[%clk 0:00:01.2]} 39... Kf7 {[%clk 0:00:17]} 40. Qg4 {[%clk
0:00:01.2]} 40... Ke7 {[%clk 0:00:17.9]} 0-1